Workbook

Sheet 卫生系列
A1: 贵阳市2022年下半年公开招聘事业单位工作人员面试成绩、总成绩排名及进入体检环节人员名单
A2: 序号 | B2: 姓名 | C2: 准考证号 | D2: 单位名称 | E2: 报考岗位及代码 | F2: 笔试成绩 | G2: 笔试成绩（百分制） | H2: 笔试成绩30% | I2: 专业测试成绩 | J2: 专业测试成绩40% | K2: 面试成绩 | L2: 面试成绩30% | M2: 总成绩 | N2: 总成绩 排名 | O2: 是否进入体检环节
A3: 1 | B3: 王曌星 | C3: 1152016100424 | D3: 乌当区疾病预防控制中心 | E3: 10101008901 | F3: 89 | G3: =F3/1.5 -> 59.33 | H3: =G3*0.3 -> 17.80 | I3: 68.64 | J3: =I3*0.4 -> 27.46 | K3: 83.6 | L3: =K3*0.3 -> 25.08 | M3: =H3+J3+L3 -> 70.34 | N3: 1 | O3: 是
A4: 2 | B4: 杨涛 | C4: 1152016100203 | D4: 乌当区疾病预防控制中心 | E4: 10101008901 | F4: 85 | G4: 56.67 | H4: 17.00 | I4: 64.41 | J4: 25.76 | K4: 77.6 | L4: =K4*0.3 -> 23.28 | M4: =H4+J4+L4 -> 66.04 | N4: 2
A5: 3 | B5: 何家琪 | C5: 1152016102221 | D5: 乌当区疾病预防控制中心 | E5: 10101008901 | F5: 64 | G5: 42.67 | H5: 12.80 | I5: 60.77 | J5: 24.31 | K5: 缺考
A6: 4 | B6: 雷霞 | C6: 1152016101215 | D6: 乌当区水田卫生院 | E6: 10101009001 | F6: 86 | G6: 57.33 | H6: 17.20 | I6: 64.3 | J6: 25.72 | K6: 78.8 | L6: 23.64 | M6: 66.56 | N6: 1 | O6: 是
A7: 5 | B7: 严豪 | C7: 1152016101021 | D7: 乌当区水田卫生院 | E7: 10101009001 | F7: 89 | G7: 59.33 | H7: 17.80 | I7: 60.66 | J7: 24.26 | K7: 80.4 | L7: 24.12 | M7: 66.18 | N7: 2
A8: 6 | B8: 余全漆 | C8: 1152016200709 | D8: 乌当区水田卫生院 | E8: 10101009001 | F8: 85 | G8: 56.67 | H8: 17.00 | I8: 63.43 | J8: 25.37 | K8: 缺考
A9: 7 | B9: 王琪 | C9: 1152016201418 | D9: 乌当区羊昌卫生院 | E9: 10101009101 | F9: 98 | G9: 65.33 | H9: 19.60 | I9: 68.81 | J9: 27.52 | K9: 83.6 | L9: =K9*0.3 -> 25.08 | M9: =H9+J9+L9 -> 72.20 | N9: 1 | O9: 是
A10: 8 | B10: 杨田田 | C10: 1152016201023 | D10: 乌当区羊昌卫生院 | E10: 10101009101 | F10: 83 | G10: 55.33 | H10: 16.60 | I10: 74.96 | J10: 29.98 | K10: 79.2 | L10: 23.76 | M10: 70.34 | N10: 2
A11: 9 | B11: 闵昌娟 | C11: 1152016202801 | D11: 乌当区羊昌卫生院 | E11: 10101009101 | F11: 69.5 | G11: 46.33 | H11: 13.90 | I11: 70.13 | J11: 28.05 | K11: 69.4（未达最低合格分数线） | L11: 20.82 | M11: 62.77
A12: 10 | B12: 龙涛 | C12: 1152016200527 | D12: 乌当区羊昌卫生院 | E12: 10101009102 | F12: 84 | G12: 56.00 | H12: 16.80 | I12: 69.11 | J12: 27.64 | K12: 81.6 | L12: =K12*0.3 -> 24.48 | M12: 68.92 | N12: 1 | O12: 是
A13: 11 | B13: 王沙沙 | C13: 1152016203423 | D13: 乌当区羊昌卫生院 | E13: 10101009102 | F13: 85.5 | G13: 57.00 | H13: 17.10 | I13: 72.62 | J13: 29.05 | K13: 75.8 | L13: =K13*0.3 -> 22.74 | M13: 68.89 | N13: 2
A14: 12 | B14: 张波 | C14: 1152016200703 | D14: 乌当区羊昌卫生院 | E14: 10101009102 | F14: 67 | G14: 44.67 | H14: 13.40 | I14: 69.66 | J14: 27.86 | K14: 80.2 | L14: 24.06 | M14: 65.32 | N14: 3
A15: 13 | B15: 朱芳 | C15: 1152016201807 | D15: 乌当区新场卫生院 | E15: 10101009201 | F15: 74 | G15: 49.33 | H15: 14.80 | I15: 71.73 | J15: 28.69 | K15: 73.6 | L15: 22.08 | M15: 65.57 | N15: 1 | O15: 是
A16: 14 | B16: 罗超 | C16: 1152016202215 | D16: 乌当区新场卫生院 | E16: 10101009201 | F16: 72.5 | G16: 48.33 | H16: 14.50 | I16: 63.94 | J16: 25.58 | K16: 77.6 | L16: 23.28 | M16: 63.36 | N16: 2
A17: 15 | B17: 朱访 | C17: 1152016200210 | D17: 乌当区新场卫生院 | E17: 10101009201 | F17: 62.5 | G17: 41.67 | H17: 12.50 | I17: 61.75 | J17: 24.70 | K17: 74.6 | L17: 22.38 | M17: 59.58 | N17: 3
A18: 16 | B18: 田永丰 | C18: 1152016202608 | D18: 乌当区新场卫生院 | E18: 10101009202 | F18: 80.5 | G18: 53.67 | H18: 16.10 | I18: 65.11 | J18: 26.04 | K18: 87.4 | L18: 26.22 | M18: 68.36 | N18: 1 | O18: 是
A19: 17 | B19: 杨雅馨 | C19: 1152016203325 | D19: 乌当区新场卫生院 | E19: 10101009202 | F19: 83.5 | G19: 55.67 | H19: 16.70 | I19: 66.85 | J19: 26.74 | K19: 75.2 | L19: 22.56 | M19: 66.00 | N19: 2
A20: 18 | B20: 顾肖 | C20: 1152016201814 | D20: 乌当区新场卫生院 | E20: 10101009202 | F20: 80.5 | G20: 53.67 | H20: 16.10 | I20: 62.62 | J20: 25.05 | K20: 77 | L20: 23.10 | M20: 64.25 | N20: 3
A21: 19 | B21: 石蝶 | C21: 1152016203404 | D21: 乌当区百宜卫生院 | E21: 10101009301 | F21: 80.5 | G21: 53.67 | H21: 16.10 | I21: 68.58 | J21: 27.43 | K21: 75.2 | L21: 22.56 | M21: 66.09 | N21: 1 | O21: 是
A22: 20 | B22: 杨超 | C22: 1152016202220 | D22: 乌当区百宜卫生院 | E22: 10101009301 | F22: 71.5 | G22: 47.67 | H22: 14.30 | I22: 67.32 | J22: 26.93 | K22: 80.2 | L22: 24.06 | M22: 65.29 | N22: 2
A23: 21 | B23: 赵松香 | C23: 1152016201205 | D23: 乌当区百宜卫生院 | E23: 10101009301 | F23: 69.5 | G23: 46.33 | H23: 13.90 | I23: 64.09 | J23: 25.64 | K23: 77.2 | L23: 23.16 | M23: 62.70 | N23: 3
A24: 22 | B24: 郭文帝 | C24: 1152016203101 | D24: 乌当区百宜卫生院 | E24: 10101009302 | F24: 80 | G24: 53.33 | H24: 16.00 | I24: 63.13 | J24: 25.25 | K24: 缺考
A25: 23 | B25: 陈代香 | C25: 1152016200907 | D25: 乌当区下坝卫生院 | E25: 10101009401 | F25: 72 | G25: 48.00 | H25: 14.40 | I25: 60.53 | J25: 24.21 | K25: 72.6 | L25: =K25*0.3 -> 21.78 | M25: =H25+J25+L25 -> 60.39 | N25: 1 | O25: 是
A26: 24 | B26: 曾祥丽 | C26: 1152016201630 | D26: 乌当区下坝卫生院 | E26: 10101009401 | F26: 87 | G26: 58.00 | H26: 17.40 | I26: 63.49 | J26: 25.40 | K26: 69.2（未达最低合格分数线） | L26: 20.76 | M26: =H26+J26+L26 -> 63.56

Sheet 乡镇
A1: 贵阳市2022年下半年公开招聘事业单位工作人员面试成绩、总成绩排名及进入体检环节人员名单
A2: 序号 | B2: 姓名 | C2: 准考证号 | D2: 单位名称 | E2: 报考岗位及代码（身份证号码） | F2: 笔试成绩 | G2: 笔试成绩（百分制） | H2: 笔试成绩60% | I2: 面试成绩 | J2: 面试成绩40% | K2: 总成绩 | L2: 总成绩排名 | M2: 是否进入体检环节
A3: 1 | B3: 姚威 | C3: 1152016201314 | D3: 水田镇综治服务中心 | E3: 10101009501 | F3: 102.5 | G3: =F3/1.5 -> 68.33 | H3: =G3*0.6 -> 41.00 | I3: 82.2 | J3: =I3*0.4 -> 32.88 | K3: =H3+J3 -> 73.88 | L3: 1 | M3: 是
A4: 2 | B4: 王崇霖 | C4: 1152016202422 | D4: 水田镇综治服务中心 | E4: 10101009501 | F4: 99.5 | G4: 66.33 | H4: 39.80 | I4: 81 | J4: 32.40 | K4: 72.20 | L4: 2
A5: 3 | B5: 张萌 | C5: 1152016202624 | D5: 水田镇综治服务中心 | E5: 10101009501 | F5: 96 | G5: 64.00 | H5: 38.40 | I5: 75.2 | J5: 30.08 | K5: 68.48 | L5: 3
A6: 4 | B6: 杨翠鸿 | C6: 1152016202322 | D6: 水田镇农业综合服务中心 | E6: 10101009601 | F6: 105 | G6: 70.00 | H6: 42.00 | I6: 81 | J6: 32.40 | K6: 74.40 | L6: 1 | M6: 是
A7: 5 | B7: 罗亨敏 | C7: 1152016200726 | D7: 水田镇农业综合服务中心 | E7: 10101009601 | F7: 103.5 | G7: 69.00 | H7: 41.40 | I7: 81 | J7: 32.40 | K7: 73.80 | L7: 2
A8: 6 | B8: 张连辉 | C8: 1152016202918 | D8: 水田镇农业综合服务中心 | E8: 10101009601 | F8: 95.5 | G8: 63.67 | H8: 38.20 | I8: 78.8 | J8: 31.52 | K8: 69.72 | L8: 3
A9: 7 | B9: 厉娴羽 | C9: 1152016201412 | D9: 下坝镇党务政务综合服务中心 | E9: 10101009701 | F9: 102.5 | G9: 68.33 | H9: 41.00 | I9: 81.2 | J9: 32.48 | K9: 73.48 | L9: 1 | M9: 是
A10: 8 | B10: 杨芷凝 | C10: 1152016200107 | D10: 下坝镇党务政务综合服务中心 | E10: 10101009701 | F10: 97.5 | G10: 65.00 | H10: 39.00 | I10: 83 | J10: 33.20 | K10: 72.20 | L10: 2
A11: 9 | B11: 曾婧 | C11: 1152016201219 | D11: 下坝镇党务政务综合服务中心 | E11: 10101009701 | F11: 98 | G11: 65.33 | H11: 39.20 | I11: 78.8 | J11: 31.52 | K11: 70.72 | L11: 3
A12: 10 | B12: 陈瑶 | C12: 1152016201511 | D12: 下坝镇党务政务综合服务中心 | E12: 10101009701 | F12: 97.5 | G12: 65.00 | H12: 39.00 | I12: 75.2 | J12: 30.08 | K12: 69.08 | L12: 4
A13: 11 | B13: 李玉琳 | C13: 1152016203428 | D13: 百宜镇财政所 | E13: 10101009801 | F13: 108 | G13: 72.00 | H13: 43.20 | I13: 82.8 | J13: 33.12 | K13: 76.32 | L13: 1 | M13: 是
A14: 12 | B14: 贺宇婷 | C14: 1152016200402 | D14: 百宜镇财政所 | E14: 10101009801 | F14: 101 | G14: 67.33 | H14: 40.40 | I14: 85.2 | J14: 34.08 | K14: 74.48 | L14: 2
A15: 13 | B15: 赵俊兰 | C15: 1152016203202 | D15: 百宜镇财政所 | E15: 10101009801 | F15: 100.5 | G15: 67.00 | H15: 40.20 | I15: 80 | J15: 32.00 | K15: 72.20 | L15: 3
A16: 14 | B16: 柯乐 | C16: 1152016200721 | D16: 新堡布依乡退役军人服务站 | E16: 10101009901 | F16: 93.5 | G16: 62.33 | H16: 37.40 | I16: 86.6 | J16: 34.64 | K16: 72.04 | L16: 1 | M16: 是
A17: 15 | B17: 罗优优 | C17: 1152016203420 | D17: 新堡布依乡退役军人服务站 | E17: 10101009901 | F17: 84.5 | G17: 56.33 | H17: 33.80 | I17: 73 | J17: 29.20 | K17: 63.00 | L17: 2
A18: 16 | B18: 张璇 | C18: 1152016202313 | D18: 新堡布依乡退役军人服务站 | E18: 10101009901 | F18: 85.5 | G18: 57.00 | H18: 34.20 | I18: 63.8（未达最低合格分数线） | J18: 25.52 | K18: 59.72
